bitfinex/quotes_SOLUSD_20260308
["timestamp","ask_amount","ask_price","bid_price","bid_amount"]
[1772972158404,0.28432314,81.845,81.758,0.5]
[1772972158605,5.10909883,81.845,81.758,0.5]
[1772972158805,0.28432314,81.845,81.758,0.5]
[1772972159116,5.10909883,81.843,81.76,0.5]
[1772972159630,0.28432314,81.839,81.76,0.5]
[1772972160409,12.21736447,81.851,81.76,0.5]
[1772972160630,12.21736447,81.851,81.759,12.23106936]
[1772972160631,3.69383402,81.848,81.759,12.23106936]
[1772972160822,3.69383402,81.836,81.75,12.2324159]
[1772972161000,8.51860971,81.831,81.726,0.5]
[1772972161324,8.51860971,81.835,81.728,0.5]
[1772972161325,0.28432314,81.82,81.728,0.5]
[1772972161515,8.51860971,81.813,81.728,0.5]
[1772972161713,0.28432314,81.808,81.728,0.5]
[1772972161918,0.28432314,81.806,81.728,0.5]
[1772972162118,0.48241822,81.799,81.719,42.82969688]
[1772972162298,0.48241822,81.798,81.719,42.82969688]
[1772972162915,0.48207095,81.787,81.719,42.82969688]
[1772972163108,12.22703152,81.786,81.719,42.82969688]
[1772972163417,11.37298846,81.8,81.719,42.82969688]
[1772972163418,0.48207095,81.798,81.719,104.01497814]
[1772972163618,0.48207095,81.797,81.719,104.01497814]
[1772972164125,61.0876303,81.85,81.724,0.45055909]
[1772972164325,12.6854373,81.849,81.729,0.45055909]
[1772972164514,0.46781705,81.847,81.73,0.45055909]
[1772972165123,0.46781705,81.845,81.735,0.45055909]
[1772972165317,0.46781705,81.845,81.736,0.45055909]
[1772972166031,0.46781705,81.842,81.736,0.45055909]
[1772972166227,8.80293285,81.838,81.737,0.45055909]
[1772972166411,8.51860971,81.833,81.737,0.45055909]
[1772972166729,0.33350917,81.832,81.737,0.45055909]
[1772972167025,0.28432314,81.826,81.692,7.78951977]
[1772972167210,0.28432314,81.826,81.628,49.0026206]
[1772972167211,8.51860971,81.821,81.688,208.67668463]
[1772972167412,0.28432314,81.816,81.62,12.2518267]
[1772972167620,4.82477569,81.808,81.62,12.2518267]
[1772972167811,0.28432314,81.782,81.58,42.90267221]
[1772972168008,0.28432314,81.777,81.58,189.99754838]
[1772972168234,0.28432314,81.777,81.58,91.9342976]
[1772972168235,8.51860971,81.769,81.58,91.9342976]
[1772972168525,4.82477569,81.757,81.581,1.2257756]
[1772972168729,8.51860971,81.753,81.581,1.2257756]
[1772972168926,0.28432314,81.76,81.581,1.2257756]
[1772972168927,3.69383402,81.746,81.581,1.2257756]
[1772972169112,4.82477569,81.739,81.587,3.69383402]
[1772972169315,0.28432314,81.731,81.603,0.5]
[1772972169518,3.69383402,81.737,81.603,0.5]
[1772972169519,0.14216157,81.739,81.603,0.5]
[1772972169829,0.14216157,81.736,81.603,0.5]
[1772972170026,0.28432314,81.736,81.603,0.5]
[1772972170533,12.2339124,81.74,81.613,0.5]
[1772972170834,0.04941347,81.751,81.653,0.5]
[1772972171127,12.22807811,81.779,81.676,104.06973896]
[1772972171330,7.55618158,81.779,81.685,0.47529326]
[1772972171539,7.55618158,81.779,81.686,0.47529326]
[1772972172058,0.04941347,81.778,81.686,0.47529326]
[1772972172223,7.55618158,81.779,81.686,0.47529326]
[1772972172409,12.22195062,81.82,81.705,0.47529326]
[1772972172609,3.69383402,81.817,81.705,0.47529326]
[1772972172824,0.04941347,81.819,81.705,0.47529326]
[1772972173413,0.04941347,81.832,81.715,0.47529326]
[1772972173619,0.04941347,81.832,81.716,0.47529326]
[1772972173824,42.81944511,81.833,81.716,0.47529326]
[1772972174134,42.81944511,81.833,81.726,0.47529326]
[1772972174344,0.04941347,81.832,81.726,0.47529326]
[1772972174637,0.04941347,81.828,81.726,0.47529326]
[1772972174843,0.04941347,81.823,81.726,0.47529326]
[1772972175035,0.04941347,81.821,81.726,0.47529326]
[1772972175216,0.04941347,81.813,81.726,0.47529326]
[1772972175423,0.04941347,81.808,81.728,0.47529326]
[1772972176712,0.04941347,81.808,81.727,12.2358584]
[1772972176919,0.04941347,81.808,81.728,0.47529326]
[1772972177337,42.83251535,81.808,81.729,42.82445643]
[1772972177541,0.19157504,81.804,81.73,0.47529326]
[1772972177842,0.04941347,81.803,81.73,0.47529326]
[1772972178620,103.90181887,81.808,81.73,0.47529326]
[1772972178621,12.22374339,81.808,81.73,0.47529326]
[1772972178836,12.21762025,81.849,81.734,0.47529326]
[1772972179040,12.21762025,81.849,81.732,3.69383402]
[1772972179041,12.21762025,81.849,81.737,0.47529326]
[1772972179343,3.69383402,81.846,81.737,0.47529326]
[1772972179543,42.76376076,81.845,81.742,0.47529326]
[1772972179724,42.76376076,81.845,81.743,0.47529326]
[1772972180239,0.04941347,81.836,81.743,0.47529326]
[1772972181637,0.04941347,81.836,81.729,0.28432314]
[1772972181638,0.04941347,81.836,81.745,0.47529326]
[1772972181944,0.04941347,81.835,81.745,0.47529326]
[1772972182527,42.7663734,81.84,81.746,0.47529326]
[1772972183135,12.21717245,81.852,81.749,0.47529326]
[1772972183536,42.76010359,81.852,81.749,0.47529326]
[1772972183735,0.28432314,81.851,81.754,0.47529326]
[1772972184063,0.04941347,81.85,81.755,0.47529326]
[1772972184347,7.55634253,81.854,81.757,0.47529326]
[1772972184551,0.04941347,81.894,81.775,0.47529326]
[1772972185250,0.04941347,81.894,81.769,0.28432314]
[1772972185251,0.04941347,81.887,81.786,0.47529326]
[1772972185625,0.04941347,81.884,81.788,0.47529326]
[1772972185826,0.04941347,81.884,81.789,0.47529326]
[1772972186838,42.74234911,81.886,81.792,0.47529326]
[1772972187130,0.04941347,81.895,81.798,0.47529326]
[1772972187528,12.21060857,81.896,81.798,0.47529326]
[1772972187746,0.04941347,81.895,81.8,0.47529326]
[1772972187944,0.04941347,81.894,81.801,0.47529326]
[1772972188755,17.50615101,81.915,81.809,4.82477569]
[1772972188931,12.20792538,81.914,81.817,0.47529326]
[1772972189347,7.5489183,81.977,81.815,3.69383402]
[1772972189348,0.04941347,81.93,81.824,0.47529326]
[1772972189530,12.20446496,81.938,81.835,0.47529326]
[1772972189729,0.04941347,81.943,81.841,0.47529326]
[1772972189934,30.5058633,81.952,81.846,0.47529326]
[1772972190143,30.5058633,81.952,81.838,0.47529326]
[1772972190144,3.69383402,81.949,81.838,0.47529326]
[1772972190344,0.04941347,81.929,81.826,0.47529326]
[1772972190650,0.04941347,81.921,81.826,0.47529326]
[1772972190831,0.04941347,81.913,81.826,0.47529326]
[1772972191032,3.69383402,81.906,81.826,0.47529326]
[1772972191234,0.04941347,81.905,81.826,0.47529326]
[1772972191836,0.28432314,81.901,81.828,0.47529326]
[1772972192037,0.04941347,81.9,81.828,0.47529326]
[1772972193750,0.04941347,81.899,81.83,0.49303986]
[1772972193931,0.04941347,81.895,81.83,0.49303986]
[1772972195850,0.04941347,81.891,81.823,12.71440127]
[1772972196043,0.04941347,81.891,81.824,0.49303986]
[1772972198244,42.7397394,81.891,81.826,0.49303986]
[1772972199359,0.04941347,81.89,81.826,0.49303986]
[1772972200142,3.69383402,81.9,81.828,0.49303986]
[1772972200459,0.28432314,81.899,81.828,0.49303986]
[1772972200678,3.69383402,81.9,81.828,0.49303986]
[1772972201444,42.78289087,81.903,81.828,0.49303986]
[1772972202369,30.52391243,81.903,81.83,0.49303986]
[1772972202669,30.51084497,81.939,81.834,0.49303986]
[1772972203356,30.51084497,81.939,81.845,0.49303986]
[1772972204265,0.04941347,81.947,81.854,0.49303986]
[1772972204567,42.70740545,81.953,81.855,0.49303986]
[1772972204945,42.75681892,81.953,81.855,0.49303986]
[1772972205961,42.70740545,81.953,81.855,0.49303986]
[1772972206267,0.04941347,81.965,81.86,0.49303986]
[1772972206461,42.70063196,81.966,81.865,0.49303986]
[1772972206663,42.70063196,81.966,81.867,0.49303986]
[1772972206869,42.70063196,81.966,81.87,0.49303986]
[1772972207055,42.70063196,81.966,81.873,0.49303986]
[1772972207254,12.20018056,81.966,81.875,0.49303986]
[1772972207565,42.70063196,81.966,81.876,0.49303986]
[1772972208366,42.70063196,81.966,81.856,201.57349488]
[1772972208367,42.70063196,81.966,81.883,0.49303986]
[1772972208661,42.70063196,81.966,81.884,1.2212398]
[1772972208865,12.19879139,81.976,81.886,0.49303986]
[1772972209057,0.04941347,82.013,81.904,3.83599559]
[1772972209257,0.04941347,82.013,81.916,0.49303986]
[1772972209849,0.04941347,82.03,81.925,0.49303986]
[1772972210050,12.18917601,82.04,81.935,3.69383402]
[1772972210363,0.04941347,82.042,81.942,0.49303986]
[1772972212673,0.04941347,82.037,81.944,0.49303986]
[1772972212978,0.04941347,82.03,81.944,0.49303986]
[1772972213153,0.04941347,82.026,81.944,0.49303986]
[1772972214551,0.04941347,82.021,81.944,0.49303986]
[1772972214774,0.04941347,82.017,81.944,0.49303986]
[1772972215072,0.04941347,82.017,81.873,0.49303986]
[1772972215252,3.69383402,82.014,81.873,0.49303986]
[1772972215455,4.96693726,82.016,81.872,42.749658]
[1772972215456,0.04941347,82.008,81.876,0.49303986]
[1772972215654,0.04941347,82.007,81.877,0.49303986]
[1772972216175,0.04941347,82.007,81.885,0.49303986]
[1772972216557,0.04941347,82.007,81.888,0.49303986]
[1772972216752,0.04941347,82.004,81.888,0.49303986]
[1772972218154,0.04941347,82.004,81.894,3.69383402]
[1772972218373,0.04941347,82.004,81.895,0.49303986]
[1772972218958,0.04941347,82.004,81.899,3.69383402]
[1772972219171,0.04941347,82.004,81.901,0.49303986]
[1772972220582,0.04941347,82.014,81.907,0.49303986]
[1772972220876,0.04941347,82.013,81.912,0.49303986]
[1772972221063,0.04941347,82.013,81.913,0.49303986]
[1772972221756,0.04941347,82.01,81.913,0.49303986]
[1772972221961,0.04941347,82.009,81.913,0.49303986]
[1772972222463,0.04941347,82.005,81.913,0.49303986]
[1772972222973,0.04941347,82.003,81.916,0.47616857]
[1772972223677,0.04941347,82.003,81.918,0.47616857]
[1772972225278,0.04941347,82.002,81.92,0.48064513]
[1772972226079,42.68136531,82.003,81.921,0.48064513]
[1772972226466,0.04941347,82.002,81.921,0.48064513]
[1772972227472,0.04941347,82.002,81.923,0.48064513]
[1772972227882,0.04941347,82.002,81.924,0.48064513]
[1772972228383,0.04941347,82.014,81.924,0.48064513]
[1772972228583,0.04941347,82.014,81.927,0.48064513]
[1772972229378,0.04941347,82.014,81.929,0.48064513]
[1772972231679,0.04941347,82.014,81.931,0.48064513]
[1772972232275,0.28432314,82.015,81.931,0.48064513]
[1772972232687,0.04941347,82.014,81.931,0.48064513]
[1772972232880,42.67460006,82.016,81.934,0.48064513]
[1772972233078,42.66107602,82.042,81.941,3.69383402]
[1772972233378,42.66107602,82.042,81.938,0.48064513]
[1772972233379,0.04941347,82.041,81.944,0.48064513]
[1772972233580,0.04941347,82.041,81.947,0.48064513]
[1772972233781,0.04941347,82.041,81.945,43.93190553]
[1772972233782,0.04941347,82.04,81.949,0.48064513]
[1772972233984,0.28432314,82.038,81.949,0.48064513]
[1772972234190,0.04941347,82.037,81.949,0.48064513]
[1772972235086,0.33373661,82.029,81.949,0.48064513]
[1772972235285,0.04941347,82.025,81.949,0.48064513]
[1772972235489,3.69383402,82.022,81.949,12.6832341]
[1772972235665,0.04941347,82.02,81.95,0.48064513]
[1772972235862,0.04941347,82.02,81.949,12.20258897]
[1772972236067,0.04941347,82.02,81.941,0.48064513]
[1772972237381,0.28432314,82.021,81.941,0.48064513]
[1772972237382,0.04941347,82.016,81.941,0.48064513]
[1772972237587,0.04941347,82.012,81.941,0.48064513]
[1772972237786,0.04941347,82.011,81.941,0.48064513]
[1772972238092,0.28432314,82.006,81.93,0.48064513]
[1772972238282,0.04941347,82.005,81.93,0.48064513]
[1772972239665,0.04941347,82.0,81.932,0.48064513]
[1772972241273,103.65221631,82.005,81.901,0.48064513]
[1772972241274,0.04941347,81.984,81.901,0.48064513]
[1772972241475,0.04941347,81.975,81.901,0.48064513]
[1772972241781,0.04941347,81.972,81.901,0.48064513]
[1772972241980,0.19157504,81.964,81.891,0.48064513]
[1772972242285,0.04941347,81.956,81.891,0.48064513]
[1772972242485,0.04941347,81.956,81.881,0.48064513]
[1772972242882,0.04941347,81.953,81.881,0.48064513]
[1772972243078,0.04941347,81.953,81.882,0.48064513]
[1772972243880,0.04941347,81.949,81.884,0.48064513]
[1772972244071,0.04941347,81.948,81.884,0.48064513]
[1772972245893,12.20211584,81.953,81.884,0.48064513]
[1772972246097,0.04941347,81.992,81.889,0.48064513]
[1772972249293,0.04941347,81.992,81.892,0.48064513]
[1772972251393,0.04941347,81.989,81.895,0.48064513]
[1772972253386,0.04941347,81.985,81.898,0.49017174]
[1772972253592,0.04941347,81.984,81.898,0.49017174]
[1772972254701,42.68865335,81.989,81.898,0.49017174]
[1772972254877,0.04941347,81.988,81.901,0.49017174]
[1772972255486,0.04941347,81.988,81.904,0.49017174]
[1772972257581,0.04941347,81.988,81.906,0.49017174]
[1772972258287,0.04941347,81.988,81.907,0.49017174]
[1772972258682,42.68500902,81.996,81.907,0.49017174]
[1772972259000,0.04941347,81.995,81.909,0.49017174]
[1772972259587,0.04941347,81.995,81.912,0.49017174]
[1772972262703,0.04941347,81.995,81.915,0.49017174]
[1772972262883,0.04941347,82.002,81.915,0.49017174]
[1772972263202,0.04941347,82.002,81.913,103.76863257]
[1772972263203,0.04941347,82.002,81.918,0.49017174]
[1772972263381,0.04941347,82.002,81.921,0.49017174]
[1772972265088,0.04941347,82.002,81.923,0.49017174]
[1772972268005,0.04941347,82.003,81.926,0.49017174]
[1772972268405,12.19452709,82.004,81.928,0.49017174]
[1772972268406,42.68084483,82.004,81.928,0.49017174]
[1772972268717,0.04941347,82.021,81.93,0.49017174]
[1772972268889,12.19021613,82.033,81.927,3.97815716]
[1772972268890,0.04941347,82.032,81.935,0.49017174]
[1772972269090,0.04941347,82.032,81.938,0.49017174]
[1772972269291,0.04941347,82.032,81.941,0.49017174]
[1772972269492,0.04941347,82.032,81.944,0.49017174]
[1772972269694,0.04941347,82.032,81.947,0.49017174]
[1772972269910,0.04941347,82.041,81.951,0.49017174]
[1772972270222,0.04941347,82.041,81.95,103.72178156]
[1772972270223,0.04941347,82.041,81.954,0.49017174]
[1772972270598,0.04941347,82.041,81.957,0.49017174]
[1772972270911,42.66107602,82.042,81.96,0.49017174]
[1772972270912,12.18887886,82.042,81.96,0.49017174]
[1772972271213,0.04941347,82.041,81.963,0.49017174]
[1772972271902,0.04941347,82.041,81.966,0.49017174]
[1772972273914,0.04941347,82.041,81.968,0.49017174]
[1772972275403,0.04941347,82.041,81.946,61.01525411]
[1772972275404,0.04941347,82.041,81.97,0.49017174]
[1772972276908,42.6579563,82.048,81.97,0.49017174]
[1772972277094,0.04941347,82.047,81.97,0.49017174]
[1772972277290,0.04941347,82.047,81.972,0.49017174]
[1772972278420,0.04941347,82.047,81.974,0.49017174]
[1772972278600,0.04941347,82.047,81.975,0.49017174]
[1772972278919,0.04941347,82.047,81.971,103.69520927]
[1772972278920,0.04941347,82.047,81.978,0.49017174]
[1772972279422,0.04941347,82.047,81.98,0.49017174]
[1772972281234,0.04941347,82.046,81.98,0.49017174]
[1772972281722,0.04941347,82.044,81.982,0.49017174]
[1772972283014,103.60041927,82.046,81.982,0.49017174]
[1772972283015,12.18828462,82.046,81.982,0.49017174]
[1772972283246,12.18704425,82.055,81.983,0.47529326]
[1772972283407,12.18704425,82.055,81.984,0.47529326]
[1772972283612,12.18704425,82.055,81.988,0.47529326]
[1772972283906,12.18704425,82.055,81.991,0.48417685]
[1772972284111,12.18704425,82.055,81.994,0.48417685]
[1772972284314,12.18704425,82.055,81.997,0.48417685]
[1772972285500,12.18704425,82.055,82.001,0.48417685]
[1772972285910,12.18704425,82.055,82.003,0.48417685]
[1772972286111,12.18704425,82.055,82.005,0.48417685]
[1772972287824,12.18704425,82.055,82.008,0.48417685]
[1772972288023,0.04941347,82.054,82.008,0.48417685]
[1772972289003,42.65441369,82.055,82.008,0.48417685]
[1772972289522,0.04941347,82.054,82.008,0.48417685]
[1772972289714,0.04941347,82.054,82.01,0.48417685]
[1772972290333,0.04941347,82.053,81.998,0.48417685]
[1772972291732,0.04941347,82.052,81.999,12.19527067]
[1772972291939,0.04941347,82.052,82.0,0.48417685]
[1772972294327,0.04941347,82.052,82.002,0.48417685]
[1772972295521,6.3640409,82.085,82.005,0.48417685]
[1772972295704,0.04941347,82.083,82.007,0.48417685]
[1772972295905,0.04941347,82.083,82.009,0.48417685]
[1772972296426,0.04941347,82.083,82.011,0.48417685]
[1772972296626,12.18204853,82.088,82.013,0.48417685]
[1772972296813,12.18204853,82.088,82.016,0.48417685]
[1772972297013,12.18204853,82.088,82.018,0.48417685]
[1772972297221,12.18204853,82.088,82.021,0.48417685]
[1772972297409,12.18204853,82.088,82.024,0.48417685]
[1772972297612,12.18204853,82.088,82.027,0.48417685]
[1772972298204,0.04941347,82.101,82.027,0.48417685]
[1772972298411,0.04941347,82.101,82.029,0.48417685]
[1772972298709,12.18173368,82.091,82.03,0.48417685]
[1772972298926,12.18173368,82.091,82.032,0.48417685]
[1772972299132,12.18190013,82.089,82.034,0.48417685]
[1772972299330,0.04941347,82.088,82.034,0.48417685]
[1772972300148,12.18190013,82.089,82.034,0.48417685]
[1772972300736,12.1813069,82.093,82.036,0.48417685]
[1772972300912,12.18064813,82.098,82.037,0.48417685]
[1772972301111,12.18064813,82.098,82.038,0.48417685]
[1772972301313,12.18064813,82.098,82.04,0.48417685]
[1772972301513,12.18114398,82.095,82.04,0.48417685]
[1772972302130,12.3817602,82.09,82.04,0.48417685]
[1772972302314,0.04941347,82.089,82.04,0.48417685]
[1772972303031,0.2,82.09,82.042,0.48417685]
[1772972303633,12.18190013,82.089,82.042,0.48417685]
[1772972304019,0.2,82.09,82.042,0.48417685]
[1772972304320,12.18190013,82.089,82.045,0.48417685]
[1772972305527,12.18190013,82.089,82.047,0.48417685]
[1772972307411,12.18190013,82.089,82.049,0.48417685]
[1772972307617,0.04941347,82.088,82.048,12.18798751]
[1772972307816,0.33373661,82.085,82.023,0.48417685]
[1772972308038,0.04941347,82.08,82.005,12.67855524]
[1772972308217,0.04941347,82.08,82.006,0.48417685]
[1772972309430,0.04941347,82.08,82.008,0.48417685]
[1772972309637,0.04941347,82.079,82.008,0.48417685]
[1772972312519,12.1833843,82.079,82.01,0.48417685]
[1772972312731,12.1833843,82.079,82.013,0.49584044]
[1772972313037,12.1833843,82.079,82.015,0.49584044]
[1772972313637,12.1833843,82.079,82.018,0.49584044]
[1772972313938,42.63665046,82.089,82.021,0.49584044]
[1772972314141,0.04941347,82.088,82.021,0.49584044]
[1772972314442,0.04941347,82.087,82.021,0.49584044]
[1772972316520,0.04941347,82.083,82.023,0.49584044]
[1772972316725,0.04941347,82.082,82.023,0.49584044]
[1772972318439,3.69383402,82.084,82.023,0.49584044]
[1772972318632,42.63976706,82.083,82.025,0.49584044]
[1772972318939,12.18279059,82.083,82.026,0.49584044]
[1772972319143,12.18279059,82.083,82.024,103.62820636]
[1772972319144,12.18279059,82.083,82.028,0.49584044]
[1772972319343,12.18279059,82.083,82.03,0.49584044]
[1772972319542,12.18279059,82.083,82.032,0.49584044]
[1772972319845,12.18279059,82.083,82.034,0.49584044]
[1772972320024,12.18279059,82.083,82.036,0.49584044]
[1772972320538,12.18227345,82.087,82.039,42.66263605]
[1772972320843,0.2,82.09,82.042,0.49584044]
[1772972321054,0.2,82.09,82.044,0.49584044]
[1772972321356,0.04941347,82.117,82.047,0.49584044]
[1772972322048,0.04941347,82.116,82.047,0.49584044]
[1772972322849,0.04941347,82.116,82.049,0.49584044]
[1772972323052,0.04941347,82.113,82.049,0.49584044]
[1772972324757,0.04941347,82.109,82.029,0.49584044]
[1772972325057,0.04941347,82.108,82.029,0.49584044]
[1772972325353,0.04941347,82.108,82.031,0.49584044]
[1772972326461,0.04941347,82.105,82.031,0.49584044]
[1772972326667,0.04941347,82.105,82.032,0.49584044]
[1772972327049,0.04941347,82.105,82.034,0.49584044]
[1772972327250,0.04941347,82.104,82.034,0.49584044]
[1772972328540,0.04941347,82.1,82.029,0.49584044]
[1772972329360,0.04941347,82.096,82.03,12.19066195]
[1772972329651,0.04941347,82.096,82.029,0.49584044]
[1772972329652,0.04941347,82.095,82.029,0.49584044]
[1772972330855,0.04941347,82.095,82.03,0.49584044]
[1772972332049,12.1810098,82.095,82.032,0.63800201]
[1772972332270,12.1810098,82.095,82.033,0.49584044]
[1772972332558,0.04941347,82.094,82.033,0.49584044]
[1772972332867,12.1810098,82.095,82.033,0.49584044]
[1772972334448,0.04941347,82.103,82.035,0.49584044]
[1772972334849,0.04941347,82.112,82.035,0.49584044]
[1772972338351,0.04941347,82.11,82.037,0.49584044]
[1772972339270,0.04941347,82.111,82.04,0.49584044]
[1772972339576,0.04941347,82.11,82.04,0.49584044]
[1772972340351,0.04941347,82.108,82.042,0.49584044]
[1772972340574,12.17878455,82.11,82.043,0.49584044]
[1772972340866,0.04941347,82.109,82.043,0.49584044]
[1772972343850,0.04941347,82.109,82.044,103.60294475]
[1772972344073,0.04941347,82.109,82.045,0.49641561]
[1772972345783,0.04941347,82.106,82.045,0.49641561]
[1772972345976,0.04941347,82.105,82.047,0.49641561]
[1772972346581,12.17937787,82.106,82.047,0.49641561]
[1772972347557,0.04941347,82.113,82.048,0.49641561]
[1772972347762,7.49650334,82.119,82.05,0.49641561]
[1772972347971,12.17759809,82.118,82.053,0.28432314]
[1772972348172,12.17759809,82.118,82.054,0.49641561]
[1772972348368,0.04941347,82.117,82.054,0.49641561]
[1772972349681,7.49650334,82.119,82.054,0.49641561]
[1772972349976,7.49650334,82.119,82.034,103.6]
[1772972349977,7.29650334,82.119,82.058,42.6527578]
[1772972350186,7.29650334,82.119,82.063,0.49641561]
[1772972350485,7.29650334,82.119,82.065,0.49641561]
[1772972351763,7.29650334,82.119,82.068,0.49641561]
[1772972352060,7.29650334,82.119,82.061,3.69383402]
[1772972352061,7.29650334,82.119,82.074,0.49641561]
[1772972353573,0.24941347,82.118,82.074,0.49641561]
[1772972353973,0.24941347,82.118,82.072,42.64548201]
[1772972353974,0.24941347,82.117,82.075,12.68039367]
[1772972354165,0.24941347,82.117,82.076,0.49641561]
[1772972356793,0.24941347,82.115,82.077,12.18368117]
[1772972358370,12.17819129,82.114,82.077,0.49641561]
[1772972358673,0.24941347,82.113,82.077,0.49641561]
[1772972360894,0.24941347,82.111,82.056,0.49641561]
[1772972361192,0.24941347,82.11,82.056,0.49641561]
[1772972363700,0.24941347,82.107,82.057,12.18665074]
[1772972364074,0.24941347,82.107,82.05,0.49641561]
[1772972364501,0.24941347,82.103,82.04,12.18906236]
[1772972364817,0.24941347,82.102,82.04,12.18906236]
[1772972364978,0.24941347,82.102,82.032,0.49641561]
[1772972364979,0.24941347,82.094,82.035,12.18985794]
[1772972365278,0.24941347,82.093,82.035,12.18985794]
[1772972365878,0.24941347,82.09,82.035,12.18985794]
[1772972366775,0.24941347,82.09,82.036,0.49641561]
[1772972367494,0.24941347,82.09,82.035,12.18985794]
[1772972368294,0.24941347,82.087,82.032,0.49641561]
[1772972370683,0.24941347,82.095,82.035,0.49641561]
[1772972371879,12.18143809,82.093,82.037,0.49641561]
[1772972372693,0.24941347,82.105,82.038,0.45225938]
[1772972373202,42.62782256,82.106,82.038,0.45225938]
[1772972374096,0.24941347,82.11,82.041,0.45225938]
[1772972377188,0.24941347,82.108,82.044,0.45225938]
[1772972379097,12.17893288,82.109,82.047,0.45225938]
[1772972379404,37.74031359,82.119,82.047,0.45225938]
[1772972379405,7.29650334,82.119,82.049,0.28432314]
[1772972379602,7.29650334,82.119,82.05,0.45225938]
[1772972380893,7.29650334,82.119,82.053,0.45225938]
[1772972380894,12.17759809,82.118,82.053,0.45225938]
[1772972381493,0.24941347,82.117,82.053,0.45225938]
[1772972381692,42.62159331,82.118,82.053,0.45225938]
[1772972381693,0.24941347,82.116,82.053,0.45225938]
[1772972383691,0.24941347,82.115,82.055,0.45225938]
[1772972384803,0.24941347,82.113,82.055,0.45225938]
[1772972385208,0.24941347,82.111,82.054,12.1870963]
[1772972385588,0.53373661,82.109,82.047,12.18813606]
[1772972385785,0.24941347,82.108,82.047,12.64039544]
[1772972385988,0.24941347,82.108,82.048,0.45225938]
[1772972389122,0.24941347,82.105,82.05,0.45225938]
[1772972390222,42.62938016,82.103,82.051,12.18754189]
[1772972390402,0.24941347,82.102,82.051,12.18754189]
[1772972390608,0.24941347,82.099,82.052,0.45225938]
[1772972390812,0.24941347,82.099,82.051,12.18754189]
[1772972391322,0.24941347,82.099,82.046,12.18823011]
[1772972391813,0.24941347,82.099,82.046,12.64048949]
[1772972392217,0.24941347,82.096,82.047,0.45225938]
[1772972395027,0.24941347,82.094,82.049,0.45225938]
[1772972397912,0.24941347,82.092,82.051,0.45225938]
[1772972400218,0.24941347,82.09,82.053,0.45225938]
[1772972400607,0.24941347,82.09,82.039,0.45225938]
[1772972400608,0.24941347,82.089,82.039,0.45225938]
[1772972401033,0.24941347,82.089,82.041,0.45225938]
[1772972401909,0.24941347,82.085,82.043,0.45225938]
[1772972403011,0.24941347,82.083,82.045,0.47896292]
[1772972405053,12.18264217,82.084,82.045,0.47896292]
[1772972405335,60.89546926,82.108,82.047,0.4502936]
[1772972405336,0.24941347,82.088,82.047,0.4502936]
[1772972406025,42.63665046,82.089,82.047,0.4502936]
[1772972406433,12.18190013,82.089,82.047,0.4502936]
[1772972407337,30.45166983,82.098,82.049,0.4502936]
[1772972407629,0.24941347,82.097,82.049,0.4502936]
[1772972408636,12.17759809,82.118,82.05,0.4502936]
[1772972408832,12.17759809,82.118,82.051,0.4502936]
[1772972409233,12.17759809,82.118,82.054,0.4502936]
[1772972409632,0.24941347,82.132,82.054,0.4502936]
[1772972409633,12.1772827,82.121,82.054,0.4502936]
[1772972409839,12.17759809,82.118,82.054,0.4502936]
[1772972411037,7.54591681,82.119,82.057,0.4502936]
[1772972411228,7.29650334,82.119,82.057,0.4502936]
[1772972411429,12.17759809,82.118,82.057,0.4502936]
[1772972413040,7.29650334,82.119,82.057,0.4502936]
[1772972413243,7.29650334,82.119,82.06,0.4502936]
[1772972413440,7.29650334,82.119,82.063,0.4502936]
[1772972413626,7.29650334,82.119,82.065,0.4502936]
[1772972413825,0.24941347,82.144,82.067,0.4502936]
[1772972414140,12.17429849,82.141,82.07,0.4502936]
[1772972414320,12.17550182,82.133,82.07,0.4502936]
[1772972414833,12.17470057,82.138,82.07,0.4502936]
[1772972415027,12.17401,82.143,82.07,0.4502936]
[1772972415227,12.17449202,82.139,82.074,0.4502936]
[1772972415443,12.17395073,82.143,82.077,0.4502936]
[1772972415648,12.17446127,82.14,82.077,0.4502936]
[1772972415834,0.24941347,82.146,82.081,0.4502936]
[1772972416040,0.44941347,82.168,82.084,0.4502936]
[1772972416350,0.44941347,82.168,82.087,0.4502936]
[1772972416719,0.44941347,82.168,82.076,3.69383402]
[1772972416720,0.44941347,82.168,82.089,0.4502936]
[1772972416963,0.44941347,82.174,82.092,0.4502936]
[1772972417156,12.16944738,82.173,82.098,3.69383402]
[1772972417330,0.44941347,82.172,82.099,0.4502936]
[1772972417645,12.16887788,82.177,82.1,0.4502936]
[1772972417855,0.44941347,82.176,82.102,0.4502936]
[1772972418361,0.44941347,82.176,82.104,0.4502936]
[1772972418539,0.44941347,82.176,82.105,0.4502936]
[1772972418848,0.44941347,82.179,82.108,0.4502936]
[1772972419028,0.44941347,82.178,82.11,0.4502936]
[1772972419227,0.44941347,82.178,82.113,0.4502936]
[1772972419447,0.44941347,82.178,82.114,0.4502936]
[1772972419644,0.2,82.18,82.114,0.4502936]
[1772972419946,0.44941347,82.179,82.117,0.4502936]
[1772972420454,0.44941347,82.179,82.119,0.4502936]
[1772972420948,0.44941347,82.178,82.122,0.4502936]